[Event "Turkish Cup 2024"]
[Site "Denizli"]
[Date "2024.08.05"]
[Round "10"]
[White "Turk, Talha Gunes"]
[Black "Tutuncu, Ali"]
[Result "0-1"]
[ECO "B06"]
[WhiteElo "1776"]
[BlackElo "2041"]
[Annotator "NA RC"]
[PlyCount "90"]
[EventDate "2024.08.01"]
[EventType "swiss"]
[EventCountry "TUR"]
[SourceTitle "playchess.com"]
[Source "ChessBase"]
[SourceQuality "1"]
[TimeControl "5400+30"]

1. e4 {[%emt 0:01:00]} g6 {[%emt 0:01:00]} 2. d4 {[%emt 0:00:30]} Bg7 {[%emt 0:00:00]} 3. Nc3 {[%emt 0:00:00]} d6 {[%emt 0:00:00]} 4. Be3 {[%emt 0:00:00]} a6 {[%emt 0:00:30]} 5. Qd2 {[%emt 0:00:30]} b5 {[%emt 0:00:30]} 6. f3 {[%emt 0:00:00]} Nd7 {[%emt 0:00:00]} 7. h4 {[%emt 0:00:00]} h6 {[%emt 0:00:00]} 8. Nh3 {[%emt 0:01:30]} Bb7 {[%emt 0:00:00]} 9. O-O-O {[%emt 0:00:30]} Rc8 {[%emt 0:00:00]} 10. Kb1 {[%emt 0:00:30]} e5 {[%emt 0:01:30]} 11. Nf2 {[%emt 0:07:30]} Ne7 {[%emt 0:02:30]} 12. g4 {[%emt 0:02:30]} exd4 {[%emt 0:06:30]} 13. Bxd4 {[%emt 0:00:30]} Ne5 {[%emt 0:00:00]} 14. Be2 {[%emt 0:15:30]} c5 {[%emt 0:11:00]} 15. Be3 {[%emt 0:01:30]} b4 {[%emt 0:00:30]} 16. Nd5 {[%emt 0:00:30]} Nxd5 {[%emt 0:17:30]} 17. exd5 {[%emt 0:00:30]} Nxf3 {[%emt 0:00:00]} 18. Qc1 {[%emt 0:08:30]} Ne5 {[%emt 0:06:00]} 19. Ne4 {[%emt 0:01:30]} c4 {[%emt 0:01:30]} 20. h5 {[%emt 0:16:30]} g5 {[%emt 0:09:30]} 21. Ng3 {[%emt 0:06:30]} b3 {[%emt 0:00:30]} 22. Nf5 {[%emt 0:00:30]} Bf6 {[%emt 0:03:30]} 23. a3 {[%emt 0:11:30]} c3 {[%emt 0:00:30]} 24. Rde1 {[%emt 0:01:30]} cxb2 {[%emt 0:12:30]} 25. Qxb2 {[%emt 0:00:30]} bxc2+ {[%emt 0:00:00]} 26. Kc1 {[%emt 0:00:30]} Bxd5 {[%emt 0:00:00]} 27. Bb6 {[%emt 0:00:30]} Qd7 {[%emt 0:00:30]} 28. Bxa6 {[%emt 0:01:30]} Kf8 {[%emt 0:00:30]} 29. Qb4 {[%emt 0:15:03]} Rc6 {[%emt 0:02:30]} 30. Rhf1 {[%emt 0:03:09]} Bc4 {[%emt 0:09:07]} 31. Bxc4 {[%emt 0:04:05]} Rxc4 {[%emt 0:00:01]} 32. Qd2 {[%emt 0:00:00]} Qc6 {[%emt 0:02:35]} 33. Ba5 {[%emt 0:01:06]} Rc5 {[%emt 0:03:51]} 34. Rxe5 {[%emt 0:00:59]} Bxe5 {[%emt 0:00:28]} 35. Bb4 {[%emt 0:00:34]} Bf4 {[%emt 0:01:34]} 36. Rxf4 {[%emt 0:00:33]} Qh1+ {[%emt 0:00:30]} 37. Qe1 {[%emt 0:00:31]} Qxe1+ {[%emt 0:00:30]} 38. Bxe1 {[%emt 0:00:00]} gxf4 {[%emt 0:00:00]} 39. Bb4 {[%emt 0:00:00]} f3 {[%emt 0:00:13]} 40. Bxc5 {[%emt 0:00:37]} dxc5 {[%emt 0:00:00]} 41. Kxc2 {[%emt 0:00:30]} f2 {[%emt 0:00:29]} 42. Ne3 {[%emt 0:00:00]} Kg7 {[%emt 0:00:00]} 43. Nf5+ {[%emt 0:01:16]} Kf6 {[%emt 0:00:21]} 44. Ng3 {[%emt 0:00:00]} Re8 {[%emt 0:00:00]} 45. Kd2 {[%emt 0:00:32]} Re1 {[%emt 0:00:00]} 0-1

[Event "Turkish Cup 2024"]
[Site "Denizli"]
[Date "2024.08.06"]
[Round "11"]
[White "Gunduz, Umut Erdem"]
[Black "Yildiz, Talat"]
[Result "1/2-1/2"]
[ECO "B37"]
[WhiteElo "2276"]
[BlackElo "1956"]
[Annotator "NA RC"]
[PlyCount "109"]
[EventDate "2024.08.01"]
[EventType "swiss"]
[EventCountry "TUR"]
[SourceTitle "playchess.com"]
[Source "ChessBase"]
[SourceQuality "1"]
[TimeControl "5400+30"]

1. Nf3 {[%emt 0:01:00]} c5 {[%emt 0:05:00]} 2. c4 {[%emt 0:00:00]} g6 {[%emt 0:01:30]} 3. d4 {[%emt 0:01:00]} cxd4 {[%emt 0:00:30]} 4. Nxd4 {[%emt 0:00:00]} Nc6 {[%emt 0:00:30]} 5. Nc2 {[%emt 0:00:00]} Bg7 {[%emt 0:00:30]} 6. e4 {[%emt 0:00:00]} d6 {[%emt 0:01:30]} 7. Be2 {[%emt 0:00:00]} Be6 {[%emt 0:04:30]} 8. O-O {[%emt 0:00:00]} Rc8 {[%emt 0:01:30]} 9. Ne3 {[%emt 0:00:00]} Qd7 {[%emt 0:06:30]} 10. f4 {[%emt 0:02:30]} Nd4 {[%emt 0:03:30]} 11. Bd3 {[%emt 0:01:30]} f5 {[%emt 0:00:30]} 12. Nc3 {[%emt 0:06:30]} Nf6 {[%emt 0:03:30]} 13. exf5 {[%emt 0:27:30]} Nxf5 {[%emt 0:00:30]} 14. Ned5 {[%emt 0:00:30]} O-O {[%emt 0:10:30]} 15. Bd2 {[%emt 0:01:30]} Nxd5 {[%emt 0:09:30]} 16. cxd5 {[%emt 0:01:30]} Bf7 {[%emt 0:02:30]} 17. Re1 {[%emt 0:06:30]} Rc5 {[%emt 0:06:30]} 18. Ne4 {[%emt 0:10:30]} Bd4+ {[%emt 0:07:30]} 19. Kf1 {[%emt 0:04:30]} Rxd5 {[%emt 0:02:30]} 20. Qf3 {[%emt 0:09:30]} b5 {[%emt 0:06:30]} 21. Ng5 {[%emt 0:01:30]} Bxb2 {[%emt 0:05:30]} 22. Nxf7 {[%emt 0:00:30]} Rxd3 {[%emt 0:00:30]} 23. Qxd3 {[%emt 0:00:30]} Bxa1 {[%emt 0:00:00]} 24. Ng5 {[%emt 0:08:07]} Bf6 {[%emt 0:01:00]} 25. Qd5+ {[%emt 0:00:02]} Kh8 {[%emt 0:00:30]} 26. Ne6 {[%emt 0:00:01]} Rc8 {[%emt 0:00:30]} 27. g4 {[%emt 0:01:56]} Ng7 {[%emt 0:02:27]} 28. g5 {[%emt 0:00:01]} Bb2 {[%emt 0:01:41]} 29. Qb3 {[%emt 0:01:09]} Nxe6 {[%emt 0:01:21]} 30. Rxe6 {[%emt 0:00:11]} Bg7 {[%emt 0:00:45]} 31. Qe3 {[%emt 0:00:04]} Qc6 {[%emt 0:00:55]} 32. Rxe7 {[%emt 0:01:15]} Qh1+ {[%emt 0:00:25]} 33. Ke2 {[%emt 0:00:39]} Qg2+ {[%emt 0:00:48]} 34. Ke1 {[%emt 0:01:37]} Qh1+ {[%emt 0:03:28]} 35. Ke2 {[%emt 0:00:10]} Qc6 {[%emt 0:03:31]} 36. Qxa7 {[%emt 0:02:14]} Qc4+ {[%emt 0:00:35]} 37. Ke1 {[%emt 0:00:20]} Bc3 {[%emt 0:01:20]} 38. Qe3 {[%emt 0:05:13]} Bxd2+ {[%emt 0:00:30]} 39. Qxd2 {[%emt 0:00:00]} Qc1+ {[%emt 0:02:26]} 40. Qd1 {[%emt 0:00:00]} Qb2 {[%emt 0:00:52]} 41. Re2 {[%emt 0:00:32]} Qc3+ {[%emt 0:00:30]} 42. Kf2 {[%emt 0:00:55]} Qc5+ {[%emt 0:00:21]} 43. Kg3 {[%emt 0:00:50]} Qc3+ {[%emt 0:00:21]} 44. Kg4 {[%emt 0:01:59]} Qc6 {[%emt 0:00:43]} 45. Qd4+ {[%emt 0:01:36]} Kg8 {[%emt 0:00:02]} 46. Kh4 {[%emt 0:00:03]} Qc4 {[%emt 0:01:33]} 47. Qe3 {[%emt 0:00:13]} Rf8 {[%emt 0:00:38]} 48. Kg3 {[%emt 0:00:01]} Rxf4 {[%emt 0:00:36]} 49. Qxf4 {[%emt 0:01:06]} Qxe2 {[%emt 0:00:01]} 50. Qxd6 {[%emt 0:00:00]} Qe3+ {[%emt 0:00:28]} 51. Kg4 {[%emt 0:00:45]} Qg1+ {[%emt 0:01:29]} 52. Qg3 {[%emt 0:01:18]} Qd1+ {[%emt 0:00:15]} 53. Qf3 {[%emt 0:00:31]} Qg1+ {[%emt 0:01:25]} 54. Qg3 {[%emt 0:00:01]} Qd4+ {[%emt 0:00:22]} 55. Qf4 {[%emt 0:00:07]} 1/2-1/2

[Event "Turkish Cup 2024"]
[Site "Denizli"]
[Date "2024.08.06"]
[Round "11"]
[White "Topuz, Mirac Melih"]
[Black "Yilmaz, Kerem Tuna"]
[Result "1-0"]
[ECO "C20"]
[WhiteElo "2148"]
[BlackElo "2025"]
[Annotator "NA RC"]
[PlyCount "55"]
[EventDate "2024.08.01"]
[EventType "swiss"]
[EventCountry "TUR"]
[SourceTitle "playchess.com"]
[Source "ChessBase"]
[SourceQuality "1"]
[TimeControl "5400+30"]

1. e4 e5 2. Qh5 d6 3. Bc4 g6 4. Qf3 Nf6 5. Ne2 Nc6 6. h3 Bg7 7. d3 Na5 8. Nbc3 Nxc4 9. dxc4 Be6 10. b3 Qe7 11. O-O Nd7 12. Ba3 O-O 13. Rad1 b6 14. Ng3 f5 15. exf5 gxf5 16. Nd5 Bxd5 17. Qxd5+ Kh8 18. Nxf5 Qg5 19. Nxg7 Qxg7 20. Qc6 Rg8 21. Bb2 Rae8 22. f4 Qg6 23. Rf2 Nc5 24. fxe5 dxe5 25. Qxc7 Qh5 26. Re1 Rg5 27. h4 Ne6 28. Qd7 1-0

[Event "Turkish Cup 2024"]
[Site "Denizli"]
[Date "2024.08.06"]
[Round "11"]
[White "Uysal, Ugur"]
[Black "Maruflu, Enes Yusuf"]
[Result "1/2-1/2"]
[ECO "D38"]
[WhiteElo "2114"]
[BlackElo "2228"]
[Annotator "NA RC"]
[PlyCount "34"]
[EventDate "2024.08.01"]
[EventType "swiss"]
[EventCountry "TUR"]
[SourceTitle "playchess.com"]
[Source "ChessBase"]
[SourceQuality "1"]
[TimeControl "5400+30"]

1. Nf3 {[%emt 0:01:00]} d5 {[%emt 0:05:00]} 2. d4 {[%emt 0:00:30]} Nf6 {[%emt 0:00:30]} 3. c4 {[%emt 0:00:30]} e6 {[%emt 0:00:30]} 4. Nc3 {[%emt 0:00:00]} Bb4 {[%emt 0:00:00]} 5. Bg5 {[%emt 0:00:00]} h6 {[%emt 0:00:00]} 6. Bxf6 {[%emt 0:00:00]} Qxf6 {[%emt 0:00:00]} 7. e3 {[%emt 0:00:00]} O-O {[%emt 0:00:00]} 8. Rc1 {[%emt 0:00:00]} dxc4 {[%emt 0:00:30]} 9. Bxc4 {[%emt 0:00:00]} c5 {[%emt 0:00:00]} 10. O-O {[%emt 0:01:30]} cxd4 {[%emt 0:00:00]} 11. Nxd4 {[%emt 0:00:30]} Rd8 {[%emt 0:14:30]} 12. Qb3 {[%emt 0:01:30]} Bf8 {[%emt 0:20:30]} 13. Be2 {[%emt 0:09:30]} Nd7 {[%emt 0:03:30]} 14. Ne4 {[%emt 0:01:30]} Qh4 {[%emt 0:07:30]} 15. Bd3 {[%emt 0:06:30]} Ne5 {[%emt 0:04:30]} 16. Bb1 {[%emt 0:00:30]} b6 {[%emt 0:03:30]} 17. f4 {[%emt 0:27:30]} Ng6 {[%emt 0:05:30]} 1/2-1/2

[Event "Turkish Cup 2024"]
[Site "Denizli"]
[Date "2024.08.06"]
[Round "11"]
[White "Atis, Hasan"]
[Black "Kilic, Cihan"]
[Result "1-0"]
[ECO "B17"]
[WhiteElo "2080"]
[BlackElo "1869"]
[Annotator "NA RC"]
[PlyCount "101"]
[EventDate "2024.08.01"]
[EventType "swiss"]
[EventCountry "TUR"]
[SourceTitle "playchess.com"]
[Source "ChessBase"]
[SourceQuality "1"]
[TimeControl "5400+30"]

1. e4 {[%emt 0:02:00]} c6 {[%emt 0:06:00]} 2. d4 {[%emt 0:00:30]} d5 {[%emt 0:00:30]} 3. Nc3 {[%emt 0:00:30]} dxe4 {[%emt 0:00:30]} 4. Nxe4 {[%emt 0:00:30]} Nd7 {[%emt 0:00:00]} 5. Bd3 {[%emt 0:00:30]} Ngf6 {[%emt 0:02:00]} 6. Ng5 {[%emt 0:00:30]} e6 {[%emt 0:00:30]} 7. N1f3 {[%emt 0:00:30]} Bd6 {[%emt 0:03:30]} 8. Qe2 {[%emt 0:04:30]} Nb6 {[%emt 0:06:30]} 9. Bd2 {[%emt 0:03:30]} h6 {[%emt 0:02:30]} 10. Ne4 {[%emt 0:00:30]} Nxe4 {[%emt 0:00:30]} 11. Qxe4 {[%emt 0:00:30]} Nd5 {[%emt 0:00:30]} 12. c3 {[%emt 0:01:30]} Qc7 {[%emt 0:02:30]} 13. Ne5 {[%emt 0:06:30]} Nf6 {[%emt 0:05:30]} 14. Qe2 {[%emt 0:00:30]} Bxe5 {[%emt 0:09:30]} 15. dxe5 {[%emt 0:02:30]} Nd7 {[%emt 0:00:30]} 16. f4 {[%emt 0:01:30]} b6 {[%emt 0:05:30]} 17. Be3 {[%emt 0:05:30]} Bb7 {[%emt 0:09:30]} 18. O-O-O {[%emt 0:00:00]} O-O-O {[%emt 0:00:30]} 19. Rhe1 {[%emt 0:03:00]} h5 {[%emt 0:03:30]} 20. Bf2 {[%emt 0:01:30]} g6 {[%emt 0:07:30]} 21. Bh4 {[%emt 0:02:30]} Rde8 {[%emt 0:00:30]} 22. Rd2 {[%emt 0:01:30]} b5 {[%emt 0:00:30]} 23. Red1 {[%emt 0:02:30]} Nb6 {[%emt 0:00:30]} 24. Qf2 {[%emt 0:06:30]} Kb8 {[%emt 0:01:30]} 25. Qc5 {[%emt 0:11:30]} Nd5 {[%emt 0:05:30]} 26. Be4 {[%emt 0:06:30]} Qb6 {[%emt 0:03:30]} 27. Bf2 {[%emt 0:11:30]} Qxc5 {[%emt 0:00:30]} 28. Bxc5 {[%emt 0:00:30]} Bc8 {[%emt 0:02:30]} 29. Kc2 {[%emt 0:00:30]} Ba6 {[%emt 0:07:28]} 30. b3 {[%emt 0:00:30]} Rc8 {[%emt 0:00:44]} 31. Ra1 {[%emt 0:03:30]} Rhd8 {[%emt 0:07:29]} 32. a4 {[%emt 0:01:30]} Kb7 {[%emt 0:05:09]} 33. g3 {[%emt 0:04:51]} Rd7 {[%emt 0:00:51]} 34. axb5 {[%emt 0:06:08]} cxb5 {[%emt 0:00:10]} 35. b4 {[%emt 0:00:00]} Rc6 {[%emt 0:01:34]} 36. Kb3 {[%emt 0:00:04]} Kc8 {[%emt 0:01:14]} 37. Rda2 {[%emt 0:00:34]} Kb7 {[%emt 0:00:11]} 38. Bf3 {[%emt 0:02:04]} Rd8 {[%emt 0:00:12]} 39. h3 {[%emt 0:03:30]} Rdc8 {[%emt 0:00:47]} 40. g4 {[%emt 0:02:28]} hxg4 {[%emt 0:00:30]} 41. hxg4 {[%emt 0:00:00]} Rh8 {[%emt 0:00:00]} 42. Rd1 {[%emt 0:00:05]} Rd8 {[%emt 0:01:46]} 43. Rh2 {[%emt 0:04:47]} Kc8 {[%emt 0:00:20]} 44. Rh7 {[%emt 0:01:02]} Rc7 {[%emt 0:00:25]} 45. Ra1 {[%emt 0:00:38]} Bb7 {[%emt 0:01:02]} 46. Rxa7 {[%emt 0:00:08]} Kb8 {[%emt 0:00:20]} 47. Ra5 {[%emt 0:00:49]} Kc8 {[%emt 0:00:42]} 48. Rxb5 {[%emt 0:00:45]} Bc6 {[%emt 0:00:29]} 49. Ra5 {[%emt 0:00:33]} Nxb4 {[%emt 0:00:15]} 50. Bb6 {[%emt 0:00:56]} Rb7 {[%emt 0:00:42]} 51. Ra8+ {[%emt 0:00:07]} 1-0

[Event "Turkish Cup 2024"]
[Site "Denizli"]
[Date "2024.08.06"]
[Round "11"]
[White "Turgut, Hakan"]
[Black "Yardimci, Can"]
[Result "1-0"]
[ECO "A05"]
[WhiteElo "2052"]
[BlackElo "1930"]
[Annotator "NA RC"]
[PlyCount "83"]
[EventDate "2024.08.01"]
[EventType "swiss"]
[EventCountry "TUR"]
[SourceTitle "playchess.com"]
[Source "ChessBase"]
[SourceQuality "1"]
[TimeControl "5400+30"]

1. Nf3 {[%emt 0:01:00]} Nf6 {[%emt 0:01:00]} 2. c4 {[%emt 0:00:00]} g6 {[%emt 0:01:30]} 3. b3 {[%emt 0:00:00]} Bg7 {[%emt 0:01:30]} 4. Bb2 {[%emt 0:00:30]} O-O {[%emt 0:00:30]} 5. g3 {[%emt 0:00:30]} d5 {[%emt 0:01:30]} 6. cxd5 {[%emt 0:01:30]} Nxd5 {[%emt 0:00:30]} 7. Bxg7 {[%emt 0:00:30]} Kxg7 {[%emt 0:00:30]} 8. Bg2 {[%emt 0:00:30]} c5 {[%emt 0:03:30]} 9. O-O {[%emt 0:01:30]} Nc6 {[%emt 0:00:00]} 10. d4 {[%emt 0:01:30]} cxd4 {[%emt 0:06:00]} 11. Nxd4 {[%emt 0:00:00]} e5 {[%emt 0:03:30]} 12. Nxc6 {[%emt 0:03:00]} bxc6 {[%emt 0:00:30]} 13. Qc1 {[%emt 0:05:30]} Qa5 {[%emt 0:07:30]} 14. Qxc6 {[%emt 0:10:30]} Be6 {[%emt 0:00:30]} 15. Qd6 {[%emt 0:01:30]} Rad8 {[%emt 0:12:30]} 16. Qxe5+ {[%emt 0:00:30]} Kg8 {[%emt 0:00:30]} 17. e4 {[%emt 0:01:30]} Qc7 {[%emt 0:00:30]} 18. Qxc7 {[%emt 0:00:30]} Nxc7 {[%emt 0:00:00]} 19. Nc3 {[%emt 0:02:30]} Rd2 {[%emt 0:02:00]} 20. Rfd1 {[%emt 0:00:30]} Rfd8 {[%emt 0:01:30]} 21. Nd5 {[%emt 0:00:30]} Rxd1+ {[%emt 0:01:30]} 22. Rxd1 {[%emt 0:00:00]} Kf8 {[%emt 0:00:30]} 23. Ne3 {[%emt 0:03:00]} Rxd1+ {[%emt 0:01:30]} 24. Nxd1 {[%emt 0:00:30]} Ke7 {[%emt 0:00:00]} 25. e5 {[%emt 0:00:30]} Nb5 {[%emt 0:03:00]} 26. f4 {[%emt 0:01:30]} Bf5 {[%emt 0:03:30]} 27. Bf1 {[%emt 0:04:30]} Nd4 {[%emt 0:01:30]} 28. Nc3 {[%emt 0:00:30]} Kd7 {[%emt 0:02:30]} 29. Bc4 {[%emt 0:01:30]} Be6 {[%emt 0:00:30]} 30. Kf2 {[%emt 0:02:30]} Bxc4 {[%emt 0:02:30]} 31. bxc4 {[%emt 0:00:30]} Kc6 {[%emt 0:00:00]} 32. Nb5 {[%emt 0:00:00]} Nxb5 {[%emt 0:01:00]} 33. cxb5+ {[%emt 0:00:00]} Kxb5 {[%emt 0:00:00]} 34. Ke3 {[%emt 0:00:30]} Kc4 {[%emt 0:02:00]} 35. Ke4 {[%emt 0:00:00]} a5 {[%emt 0:00:30]} 36. g4 {[%emt 0:00:00]} Kc5 {[%emt 0:00:30]} 37. a4 {[%emt 0:00:30]} h5 {[%emt 0:00:30]} 38. gxh5 {[%emt 0:00:30]} gxh5 {[%emt 0:00:00]} 39. h4 {[%emt 0:00:30]} Kb4 {[%emt 0:00:00]} 40. f5 {[%emt 0:00:00]} Kc5 {[%emt 0:00:30]} 41. f6 {[%emt 0:00:00]} Kc6 {[%emt 0:00:30]} 42. e6 {[%emt 0:00:00]} 1-0

[Event "Turkish Cup 2024"]
[Site "Denizli"]
[Date "2024.08.06"]
[Round "11"]
[White "Tutuncu, Ali"]
[Black "Akbas, Kaan"]
[Result "0-1"]
[ECO "B26"]
[WhiteElo "2041"]
[BlackElo "1990"]
[Annotator "NA RC"]
[PlyCount "80"]
[EventDate "2024.08.01"]
[EventType "swiss"]
[EventCountry "TUR"]
[SourceTitle "playchess.com"]
[Source "ChessBase"]
[SourceQuality "1"]
[TimeControl "5400+30"]

1. e4 {[%emt 0:01:00]} c5 {[%emt 0:05:00]} 2. Nc3 {[%emt 0:00:00]} Nc6 {[%emt 0:01:30]} 3. g3 {[%emt 0:00:00]} g6 {[%emt 0:00:30]} 4. Bg2 {[%emt 0:00:30]} Bg7 {[%emt 0:00:30]} 5. d3 {[%emt 0:00:30]} d6 {[%emt 0:00:00]} 6. Be3 {[%emt 0:00:00]} Rb8 {[%emt 0:00:00]} 7. f4 {[%emt 0:00:00]} b5 {[%emt 0:00:00]} 8. Qd2 {[%emt 0:00:30]} b4 {[%emt 0:01:00]} 9. Nd1 {[%emt 0:00:30]} e6 {[%emt 0:00:30]} 10. Nf3 {[%emt 0:00:30]} Nge7 {[%emt 0:00:00]} 11. Qf2 {[%emt 0:00:30]} O-O {[%emt 0:06:00]} 12. O-O {[%emt 0:00:00]} Qb6 {[%emt 0:00:00]} 13. e5 {[%emt 0:05:00]} Nd5 {[%emt 0:15:00]} 14. exd6 {[%emt 0:01:30]} Nd4 {[%emt 0:01:30]} 15. Ne5 {[%emt 0:12:30]} Qxd6 {[%emt 0:07:30]} 16. Bxd4 {[%emt 0:03:30]} cxd4 {[%emt 0:00:30]} 17. Qxd4 {[%emt 0:00:00]} Qc7 {[%emt 0:00:30]} 18. Ne3 {[%emt 0:06:00]} Bb7 {[%emt 0:08:30]} 19. Nxd5 {[%emt 0:07:30]} Bxd5 {[%emt 0:00:30]} 20. Bxd5 {[%emt 0:03:30]} Rfd8 {[%emt 0:00:30]} 21. Qc4 {[%emt 0:02:30]} Qb6+ {[%emt 0:00:30]} 22. Kh1 {[%emt 0:09:30]} Rxd5 {[%emt 0:00:30]} 23. Rae1 {[%emt 0:00:30]} Rc5 {[%emt 0:06:30]} 24. Qe4 {[%emt 0:07:30]} Bxe5 {[%emt 0:01:30]} 25. fxe5 {[%emt 0:00:00]} Rxc2 {[%emt 0:00:30]} 26. Re2 {[%emt 0:02:00]} Rbc8 {[%emt 0:00:30]} 27. Rg2 {[%emt 0:05:30]} Rc1 {[%emt 0:04:30]} 28. Rgg1 {[%emt 0:05:30]} Rxf1 {[%emt 0:02:30]} 29. Rxf1 {[%emt 0:00:00]} Rc2 {[%emt 0:00:30]} 30. d4 {[%emt 0:00:00]} Rxb2 {[%emt 0:01:30]} 31. Rc1 {[%emt 0:06:30]} Qa5 {[%emt 0:03:30]} 32. Qf3 {[%emt 0:02:30]} Qd5 {[%emt 0:01:30]} 33. Qxd5 {[%emt 0:00:30]} exd5 {[%emt 0:00:30]} 34. Rc8+ {[%emt 0:00:30]} Kg7 {[%emt 0:00:30]} 35. Rc7 {[%emt 0:00:00]} Rxa2 {[%emt 0:00:30]} 36. e6 {[%emt 0:02:00]} Kf8 {[%emt 0:03:30]} 37. Rxf7+ {[%emt 0:01:32]} Ke8 {[%emt 0:00:00]} 38. Rb7 {[%emt 0:00:20]} a5 {[%emt 0:00:00]} 39. Rb5 {[%emt 0:00:20]} Ke7 {[%emt 0:00:30]} 40. Rxd5 {[%emt 0:00:25]} b3 {[%emt 0:00:00]} 0-1

[Event "Turkish Cup 2024"]
[Site "Denizli"]
[Date "2024.08.06"]
[Round "11"]
[White "Yildirim, Ibrahim Halil"]
[Black "Ekinci, Berkay"]
[Result "0-1"]
[ECO "B38"]
[WhiteElo "2024"]
[BlackElo "1976"]
[Annotator "NA RC"]
[PlyCount "140"]
[EventDate "2024.08.01"]
[EventType "swiss"]
[EventCountry "TUR"]
[SourceTitle "playchess.com"]
[Source "ChessBase"]
[SourceQuality "1"]
[TimeControl "5400+30"]

1. e4 {[%emt 0:10:00]} c5 {[%emt 0:01:00]} 2. Nf3 {[%emt 0:00:30]} Nc6 {[%emt 0:00:00]} 3. d4 {[%emt 0:01:30]} cxd4 {[%emt 0:00:00]} 4. Nxd4 {[%emt 0:00:00]} g6 {[%emt 0:00:00]} 5. c4 {[%emt 0:00:00]} Bg7 {[%emt 0:01:00]} 6. Be3 {[%emt 0:00:00]} Nf6 {[%emt 0:02:30]} 7. Nc3 {[%emt 0:00:00]} O-O {[%emt 0:00:30]} 8. Be2 {[%emt 0:00:30]} d6 {[%emt 0:00:30]} 9. O-O {[%emt 0:00:30]} Bd7 {[%emt 0:02:30]} 10. Nc2 {[%emt 0:04:30]} Rc8 {[%emt 0:01:30]} 11. f3 {[%emt 0:36:30]} Na5 {[%emt 0:12:30]} 12. Na3 {[%emt 0:08:30]} Be6 {[%emt 0:02:30]} 13. Qa4 {[%emt 0:00:30]} Nd7 {[%emt 0:02:30]} 14. Rfc1 {[%emt 0:03:30]} b6 {[%emt 0:10:30]} 15. Rab1 {[%emt 0:01:30]} Ne5 {[%emt 0:04:30]} 16. Nd5 {[%emt 0:04:30]} f5 {[%emt 0:03:30]} 17. exf5 {[%emt 0:02:30]} Bxf5 {[%emt 0:02:30]} 18. b4 {[%emt 0:05:28]} Nac6 {[%emt 0:16:30]} 19. Rb3 {[%emt 0:02:30]} Bd7 {[%emt 0:00:30]} 20. Qa6 {[%emt 0:02:47]} e6 {[%emt 0:03:30]} 21. Nc3 {[%emt 0:00:02]} Rc7 {[%emt 0:04:30]} 22. Nab5 {[%emt 0:01:40]} Bc8 {[%emt 0:00:30]} 23. Qa3 {[%emt 0:01:21]} Rd7 {[%emt 0:00:30]} 24. Rd1 {[%emt 0:01:20]} Bb7 {[%emt 0:05:30]} 25. Qc1 {[%emt 0:01:46]} a6 {[%emt 0:01:30]} 26. Nd4 {[%emt 0:00:28]} Nxd4 {[%emt 0:00:30]} 27. Bxd4 {[%emt 0:00:02]} Qh4 {[%emt 0:00:30]} 28. Qe3 {[%emt 0:03:10]} Bh6 {[%emt 0:06:25]} 29. Qf2 {[%emt 0:01:04]} Qf4 {[%emt 0:01:02]} 30. Qg3 {[%emt 0:01:53]} Qf7 {[%emt 0:03:35]} 31. Ne4 {[%emt 0:02:31]} Bf4 {[%emt 0:01:18]} 32. Qh3 {[%emt 0:04:11]} Qf5 {[%emt 0:07:33]} 33. Qxf5 {[%emt 0:01:06]} gxf5 {[%emt 0:00:01]} 34. Ng3 {[%emt 0:00:32]} Nc6 {[%emt 0:02:16]} 35. Bxb6 {[%emt 0:00:13]} Rc8 {[%emt 0:00:30]} 36. c5 {[%emt 0:00:47]} d5 {[%emt 0:02:13]} 37. a4 {[%emt 0:00:16]} Bc7 {[%emt 0:00:35]} 38. Bxc7 {[%emt 0:00:30]} Rdxc7 {[%emt 0:00:00]} 39. Rb2 {[%emt 0:00:45]} Ne5 {[%emt 0:00:25]} 40. Rc2 {[%emt 0:00:25]} a5 {[%emt 0:00:20]} 41. bxa5 {[%emt 0:00:30]} Ra8 {[%emt 0:00:29]} 42. a6 {[%emt 0:00:31]} Bxa6 {[%emt 0:00:40]} 43. Bb5 {[%emt 0:00:22]} Nc4 {[%emt 0:00:01]} 44. Bxc4 {[%emt 0:01:16]} Bxc4 {[%emt 0:00:03]} 45. Ra1 {[%emt 0:00:22]} Rxc5 {[%emt 0:00:30]} 46. Kf2 {[%emt 0:00:00]} Rca5 {[%emt 0:01:20]} 47. Ke3 {[%emt 0:00:21]} Rxa4 {[%emt 0:00:35]} 48. Rxa4 {[%emt 0:00:02]} Rxa4 {[%emt 0:00:00]} 49. Rb2 {[%emt 0:00:05]} Kf7 {[%emt 0:00:32]} 50. Rb7+ {[%emt 0:01:16]} Kg6 {[%emt 0:00:37]} 51. Re7 {[%emt 0:00:28]} Kf6 {[%emt 0:00:21]} 52. Rc7 {[%emt 0:00:38]} Ra3+ {[%emt 0:00:18]} 53. Kd4 {[%emt 0:00:43]} e5+ {[%emt 0:01:10]} 54. Kc5 {[%emt 0:00:01]} Ra5+ {[%emt 0:00:00]} 55. Kb4 {[%emt 0:01:05]} Rb5+ {[%emt 0:00:33]} 56. Ka4 {[%emt 0:00:10]} Rb2 {[%emt 0:00:10]} 57. Rxh7 {[%emt 0:00:52]} d4 {[%emt 0:02:05]} 58. Rh6+ {[%emt 0:00:23]} Kg5 {[%emt 0:00:43]} 59. Rh5+ {[%emt 0:00:34]} Kg6 {[%emt 0:00:42]} 60. Rh8 {[%emt 0:00:28]} Rxg2 {[%emt 0:00:38]} 61. Kb4 {[%emt 0:00:16]} Bd5 {[%emt 0:00:27]} 62. Re8 {[%emt 0:00:29]} f4 {[%emt 0:00:37]} 63. Ne4 {[%emt 0:00:37]} Bxe4 {[%emt 0:00:39]} 64. fxe4 {[%emt 0:00:30]} Rg5 {[%emt 0:00:17]} 65. Kc4 {[%emt 0:00:40]} Kh5 {[%emt 0:00:24]} 66. Kd3 {[%emt 0:00:31]} Kg4 {[%emt 0:00:29]} 67. Ke2 {[%emt 0:00:31]} f3+ {[%emt 0:00:33]} 68. Kd3 {[%emt 0:00:44]} Kh3 {[%emt 0:00:20]} 69. Rf8 {[%emt 0:00:00]} Kxh2 {[%emt 0:00:37]} 70. Rxf3 {[%emt 0:00:17]} Rg3 {[%emt 0:00:01]} 0-1